Cogmind - Beta 9.4 @@@ ROGUE MODE // 2020.02.09 @ 02:11:44 Player: Sineso Result: Self-destructed Performance ------------- Evolutions (2) 1000 Regions Visited (5) 1000 Robots Destroyed (0) 0 Value Destroyed (0) 0 Prototype IDs (4) 80 Alien Tech Used (0) 0 Bonus (570) 570 TOTAL SCORE: 2650 Bonus ------- Pacifist 270 Aligned with FarCom 300 Cogmind --------- Core Integrity 38/550 Matter 69/300 Energy 12/100 System Corruption 0% Temperature Cool (1) Movement Flying (35) Location -8/Materials Parts ------- > --- POWER (1) -------- (None) > --- PROPULSION (3) --- Improved VTOL Module > --- UTILITY (5) ------ Structural Scanner Visual Processing Unit > --- WEAPON (2) ------- (None) > --- INVENTORY (4) ---- Advanced Visual Processing Unit Improved ECM Suite 8R-AWN's Boregun Bore Cannon Peak State ------------ > --- POWER ------------ Ion Engine > --- PROPULSION ------- Aluminum Leg Aluminum Leg > --- UTILITY ---------- Large Storage Unit Structural Scanner Visual Processing Unit AS-neutralizer No. 17b > --- WEAPON ----------- 8R-AWN's Boregun Grenade Launcher > --- INVENTORY -------- Light Ion Engine Hover Unit Small Storage Unit Seismic Analyzer Bore Cannon Rocket Launcher Mining Laser [Rating: 24] Favorites ----------- Power Ion Engine Engine Ion Engine Propulsion Aluminum Leg Leg Aluminum Leg Hover Unit Hover Unit Flight Unit Improved VTOL Module Utility Large Storage Unit Device AS-neutralizer No. 17b Storage Large Storage Unit Processor Visual Processing Unit Weapon 8R-AWN's Boregun Ballistic Gun 8R-AWN's Boregun Ballistic Cannon Bore Cannon Launcher Grenade Launcher Special Weapon Mining Laser Build | -11 -10 -10 -10 -9 -8 ------- Run | Scr Mat Min Exi Min Mat Slots Evolved 4 | . . . . . 4 Power . | . . . . . . Propulsion 1 | . . . . . 1 Utility 3 | . . . . . 3 Weapon . | . . . . . . Parts Attached 33 | 6 12 1 . 1 13 Power 4 | 1 2 . . . 1 Engine 4 | 1 2 . . . 1 Core . | . . . . . . Reactor . | . . . . . . Propulsion 10 | 2 3 . . . 5 Treads . | . . . . . . Leg 7 | 2 3 . . . 2 Wheel . | . . . . . . Hover 1 | . . . . . 1 Flight 2 | . . . . . 2 Utility 8 | 1 3 . . 1 3 Device 4 | . 2 . . 1 1 Storage 3 | 1 1 . . . 1 Processor 1 | . . . . . 1 Hackware . | . . . . . . Protection . | . . . . . . Artifact . | . . . . . . Weapon 11 | 2 4 1 . . 4 Energy Gun . | . . . . . . Energy Cannon . | . . . . . . Ballistic Gun 6 | 2 4 . . . . Ballistic Cannon 1 | . . . . . 1 Launcher 3 | . . 1 . . 2 Special Weapon 1 | . . . . . 1 Impact Weapon . | . . . . . . Slashing Weapon . | . . . . . . Piercing Weapon . | . . . . . . Special Melee Weapon . | . . . . . . Unidentified Prototypes 4 | . 3 . . . 1 Parts Lost 9 | . . . . . 9 Power 1 | . . . . . 1 Propulsion 4 | . . . . . 4 Utility 1 | . . . . . 1 Weapon 3 | . . . . . 3 Highest Loss Streak 8 | . . . . . 8 Average Slot Usage (%) 89 | . 81 100 100 100 62 Engine 12 | . 13 14 14 14 6 Leg 24 | . 26 28 28 28 12 Device 11 | . . 14 14 14 16 Storage 12 | . 14 14 14 14 7 Processor 1 | . . . . . 9 Ballistic Gun 13 | . 26 14 14 14 . Launcher 8 | . . 14 14 14 . Naked Turns . | . . . . . . Heaviest Build 37 | 11 34 36 36 36 37 Greatest Support 20 | 20 20 20 20 20 20 Greatest Overweight (x) 7 | 1 7 1 1 1 5 Average Overweight (x) . | . . 1 1 1 . Largest Inventory Capacity 12 | 6 12 10 10 10 12 Average Capacity 8 | 5 7 10 10 10 6 Most Carried 10 | 5 10 10 10 10 9 Average Carried 8 | . 7 9 10 9 5 Final Capacity 10 | 6 10 10 10 10 4 Final Carried 10 | . 10 10 10 10 4 Class Distribution -------------------- 95% | Mutant 4% | Scout Dominant Class ---------------- Mutant | -10/Materials Mutant | -10/Mines Mutant | -10/Exiles Mutant | -9/Mines Mutant | -8/Materials Resources | -11 -10 -10 -10 -9 -8 ----------- Run | Scr Mat Min Exi Min Mat Matter Collected 274 | 201 61 . . 12 . Remotely . | . . . . . . Salvage Created . | . . . . . . Parts . | . . . . . . Haulers Intercepted . | . . . . . . Recyclers Shooed . | . . . . . . Parts Field Recycled . | . . . . . . Retrieved Matter . | . . . . . . Parts Self-Destructed . | . . . . . . Prevented . | . . . . . . Kills | -11 -10 -10 -10 -9 -8 ------- Run | Scr Mat Min Exi Min Mat Combat Hostiles Destroyed . | . . . . . . Classes Destroyed . | . . . . . . Best Kill Streak . | . . . . . . Combat Bots Only . | . . . . . . Max Kills in Single Turn . | . . . . . . Gunslinging . | . . . . . . Exploded . | . . . . . . Melee . | . . . . . . Uniques/NPCs Destroyed . | . . . . . . Combat | -11 -10 -10 -10 -9 -8 -------- Run | Scr Mat Min Exi Min Mat Damage Taken 1174 | . . . . . 1174 Core 512 | . . . . . 512 Absorbed by Shields . | . . . . . . Core Remaining (%) 100 | 100 . . . 100 . Volleys Fired 9 | 1 . . . . 8 Largest 2 | 2 . . . . 1 Hottest 100 | 40 . . . . 100 Shots Fired 10 | 2 . . . . 8 Gun 2 | 2 . . . . . Cannon 1 | . . . . . 1 Launcher 1 | . . . . . 1 Special 6 | . . . . . 6 Kinetic 3 | 2 . . . . 1 Thermal 6 | . . . . . 6 Explosive 1 | . . . . . 1 Electromagnetic . | . . . . . . Robot Hit Streak 1 | 1 . . . . . Robot Miss Streak 2 | 1 . . . . 2 Penetration Max . | . . . . . . Secondary Targets . | . . . . . . Shots Hit Robots 1 | 1 . . . . . Core Hits 3 | 1 . . . . 2 Critical Hits . | . . . . . . Critical Kills . | . . . . . . Critical Parts Destroyed . | . . . . . . Melee Attacks . | . . . . . . Impact . | . . . . . . Slashing . | . . . . . . Piercing . | . . . . . . Sneak Attacks . | . . . . . . Combat Hostiles . | . . . . . . Follow-up Attacks . | . . . . . . Damage Inflicted 79 | 6 . . . . 73 Guns 6 | 6 . . . . . Cannons . | . . . . . . Explosions 73 | . . . . . 73 Melee . | . . . . . . Ramming . | . . . . . . Kinetic 6 | 6 . . . . . Thermal . | . . . . . . Explosive 73 | . . . . . 73 Electromagnetic . | . . . . . . Impact . | . . . . . . Slashing . | . . . . . . Piercing . | . . . . . . Highest Corruption . | . . . . . . Average Corruption . | . . . . . . Corruption Purged . | . . . . . . Overload Shots . | . . . . . . Overflow Damage 9 | . . . . . 9 Projectiles . | . . . . . . Explosions 9 | . . . . . 9 Melee . | . . . . . . Knockbacks . | . . . . . . Impact . | . . . . . . Kinetic . | . . . . . . Secondary . | . . . . . . Self-Inflicted Damage 48 | . . . . . 48 Shots 1 | . . . . . 1 Rammed . | . . . . . . Targets Rammed . | . . . . . . Kicked . | . . . . . . Crushed . | . . . . . . Highest Temperature 12 | . . . . . 12 Average Temperature 6 | . . . . . 6 Received Heat Transfer 558 | . . . . . 558 Siege Activations . | . . . . . . Robots Corrupted . | . . . . . . Combat Hostiles . | . . . . . . Parts Fried . | . . . . . . Impact Corruptions . | . . . . . . Robots Melted . | . . . . . . Combat Hostiles . | . . . . . . Parts Melted . | . . . . . . Heat Transferred . | . . . . . . Parts Sabotaged . | . . . . . . Parts Stolen . | . . . . . . Parts Stripped . | . . . . . . Power Chain Reactions . | . . . . . . Missiles Intercepted . | . . . . . . Alert | -11 -10 -10 -10 -9 -8 ------- Run | Scr Mat Min Exi Min Mat Peak Influence 51 | . 15 5 . . 51 Average Influence 10 | . 14 5 . . 19 Maximum Alert Level . | . . . . . . Low Security (%) 100 | 100 100 100 . 100 100 Level 1 . | . . . . . . Level 2 . | . . . . . . Level 3 . | . . . . . . Level 4 . | . . . . . . Level 5 . | . . . . . . High Security . | . . . . . . Max Security . | . . . . . . Squads Dispatched 4 | . 2 . . . 2 Investigation . | . . . . . . Extermination . | . . . . . . Reinforcement 4 | . 2 . . . 2 Assault . | . . . . . . Garrison . | . . . . . . Intercept . | . . . . . . Construction Impeded . | . . . . . . Haulers Reinforced . | . . . . . . Stealth | -11 -10 -10 -10 -9 -8 --------- Run | Scr Mat Min Exi Min Mat Distress Signals 2 | . . . . . 2 Communications Jammed . | . . . . . . Distress Signals . | . . . . . . Times Spotted 19 | . 1 . . . 18 Peak Tracking Total 14 | . . . . . 14 Tactical Retreats 3 | . . . . . 3 Traps | -11 -10 -10 -10 -9 -8 ------- Run | Scr Mat Min Exi Min Mat Traps Triggered 3 | . 3 . . . . Indirectly . | . . . . . . Trap Hack Attempts . | . . . . . . Triggered . | . . . . . . Disarmed . | . . . . . . Reprogrammed . | . . . . . . Reused . | . . . . . . Traps Extracted . | . . . . . . Installed . | . . . . . . Triggered . | . . . . . . Machines | -11 -10 -10 -10 -9 -8 ---------- Run | Scr Mat Min Exi Min Mat Machines Disabled . | . . . . . . Max in Single Turn . | . . . . . . Machines Sabotaged . | . . . . . . Garrisons Compromised . | . . . . . . Overloaded Fab Kills . | . . . . . . Fab Network Shutdowns . | . . . . . . Hacking | -11 -10 -10 -10 -9 -8 --------- Run | Scr Mat Min Exi Min Mat Machines Accessed 4 | . . . 4 . . Terminals . | . . . . . . Fabricators . | . . . . . . Repair Stations . | . . . . . . Recycling Units . | . . . . . . Scanalyzers . | . . . . . . Garrison Access . | . . . . . . Total Hacks 48 | . . . 48 . . Successful 48 | . . . 48 . . Failed . | . . . . . . Catastrophic . | . . . . . . Database Lockouts . | . . . . . . Manual 2 | . . . 2 . . Terminals . | . . . . . . Fabricators . | . . . . . . Repair Stations . | . . . . . . Recycling Units . | . . . . . . Scanalyzers . | . . . . . . Garrison Access . | . . . . . . Terminal Hacks 48 | . . . 48 . . Record 48 | . . . 48 . . Fabricator Hacks . | . . . . . . Repair Station Hacks . | . . . . . . Recycling Unit Hacks . | . . . . . . Scanalyzer . | . . . . . . Garrison Access Hacks . | . . . . . . Unauthorized Hacks . | . . . . . . Terminals . | . . . . . . Fabricators . | . . . . . . Repair Stations . | . . . . . . Recycling Units . | . . . . . . Scanalyzers . | . . . . . . Garrison Access . | . . . . . . Data Cores Recovered . | . . . . . . Used . | . . . . . . Hacking Detections . | . . . . . . Full Trace Events . | . . . . . . Feedback Events . | . . . . . . Feedback Blocked . | . . . . . . Robot Schematics Acquired . | . . . . . . Robots Built . | . . . . . . Matter . | . . . . . . Time . | . . . . . . Total Robot Build Rating . | . . . . . . Part Schematics Acquired . | . . . . . . Parts Built . | . . . . . . Matter . | . . . . . . Time . | . . . . . . Total Part Build Rating . | . . . . . . Parts Repaired . | . . . . . . Time . | . . . . . . Parts Recycled . | . . . . . . Recycled Matter . | . . . . . . Retrieved Matter . | . . . . . . Retrieved Components . | . . . . . . Parts Scanalyzed . | . . . . . . Part Schematics Acquired . | . . . . . . Parts Damaged . | . . . . . . Bothacking | -11 -10 -10 -10 -9 -8 ------------ Run | Scr Mat Min Exi Min Mat Used RIF Installer . | . . . . . . Robots Hacked . | . . . . . . Non-combat . | . . . . . . Combat . | . . . . . . Robot Hacks Applied . | . . . . . . Relay Couplers Released . | . . . . . . Robots Rewired . | . . . . . . Allies Hacked . | . . . . . . Hacks Repelled . | . . . . . . Allies | -11 -10 -10 -10 -9 -8 -------- Run | Scr Mat Min Exi Min Mat Total Allies . | . . . . . . Largest Group . | . . . . . . Highest-Rated Group . | . . . . . . Highest-Rated Ally . | . . . . . . Total Orders . | . . . . . . Ally Attacks . | . . . . . . Total Damage . | . . . . . . Kills . | . . . . . . Allies Corrupted . | . . . . . . Allies Melted . | . . . . . . Intel | -11 -10 -10 -10 -9 -8 ------- Run | Scr Mat Min Exi Min Mat Robot Analysis Total . | . . . . . . Derelict Logs Recovered . | . . . . . . Drone Launches . | . . . . . . Drone Recoveries . | . . . . . . Exploration | -11 -10 -10 -10 -9 -8 ------------- Run | Scr Mat Min Exi Min Mat Turns Passed 1925 | 55 349 146 714 315 346 Spaces Moved 1291 | 44 169 96 477 207 298 Core 112 | 16 9 . . . 87 Treads . | . . . . . . Legs 1122 | 28 160 96 477 207 154 Wheels . | . . . . . . Hover . | . . . . . . Flight 57 | . . . . . 57 Fastest Speed 32 | 50 120 150 150 150 32 Average Speed 133 | 95 142 150 150 150 91 Slowest Speed 400 | 120 400 150 150 150 300 Overloaded Moves . | . . . . . . Propulsion Burnouts . | . . . . . . Robots Hopped . | . . . . . . Cave-ins Triggered . | . . . . . . Exploration Rate (%) 33 | 3 18 19 72 50 41 Regions Visited 5 Branch Regions 3 Pre-discovered Areas 1 | . . . 1 . . Known Exits Taken . | . . . . . . Unknown Exits Taken 5 | 1 1 1 1 1 . Scrap Searched . | . . . . . . Spaces Dug 7 | . . . . . 7 Terrain Destroyed 17 | . . . . . 17 Melee . | . . . . . . Projectile 7 | . . . . . 7 AOE 10 | . . . . . 10 Actions | -11 -10 -10 -10 -9 -8 --------- Run | Scr Mat Min Exi Min Mat Total 1472 | 55 273 98 476 213 357 Wait 98 | . 78 . . . 20 Move 1286 | 43 168 95 476 206 298 Hop . | . . . . . . Pick Up 27 | 5 11 1 . 3 7 Fast Attach 13 | 1 11 . . . 1 Attach 17 | 5 . . . . 12 Detach 5 | . 1 . . . 4 Swap 3 | . 1 1 . 1 . Drop 14 | . 3 1 . 3 7 Fire 9 | 1 . . . . 8 Melee . | . . . . . . Ram . | . . . . . . Kick . | . . . . . . Crush . | . . . . . . Escape Stasis . | . . . . . . Rewire . | . . . . . . Trap . | . . . . . . Miscellaneous . | . . . . . . Route ------- -11/Scrapyard -10/Materials -10/Mines -10/Exiles -9/Mines -8/Materials History --------- Turn | Location | Event 5 | -11/Scrapyard | Discovered new exit (range 16) 56 | -11/Scrapyard | Entered Materials 300 | -10/Materials | Build established: Mutant 344 | -10/Materials | Discovered new exit (range 9) 388 | -10/Materials | Found Prototype Ballistic Gun 388 | -10/Materials | Identified 8R-AWN's Boregun 395 | -10/Materials | Found Prototype Device 395 | -10/Materials | Identified AS-neutralizer No. 17b 405 | -10/Materials | Entered Mines 412 | -10/Mines | Received a Rocket Launcher from a helpful Derelict 542 | -10/Mines | Deemed a non-threat by the Exiles lab entrance 542 | -10/Mines | Discovered new exit (range 5) 551 | -10/Mines | Entered Exiles 592 | -10/Exiles | Met 8R-AWN 616 | -10/Exiles | Met EX-HEX 665 | -10/Exiles | Met EX-BIN 796 | -10/Exiles | Aligned with FarCom system 797 | -10/Exiles | Given EX-Vault access code 1117 | -10/Exiles | Met EX-DEC 1162 | -10/Exiles | Learned location of Zion (-7) 1246 | -10/Exiles | Discovered new exit (range 14) 1265 | -10/Exiles | Entered Mines 1286 | -9/Mines | Found a hidden stash of uninstalled traps 1331 | -9/Mines | Met a Derelict bent on vengeance 1348 | -9/Mines | A weapon hastily lodged in a ceiling crevice suddenly fell to the ground 1400 | -9/Mines | Assembled infested the area 1405 | -9/Mines | Assisted by a Guerilla fighting off Assembled 1561 | -9/Mines | Discovered new exit (range 8) 1580 | -9/Mines | Entered Materials 1580 | -8/Materials | Evolved 4 slots: Propulsion x1, Utility x3 1880 | -8/Materials | Core integrity fell below 50% 1886 | -8/Materials | Lost 8 parts (1p3n1u3w) 1921 | -8/Materials | Core integrity fell below 20% 1926 | -8/Materials | Self-destructed Last Messages --------------- 01836_ ALERT: Hostiles spotted, dispatching reinforcements to Terminal M012. 01836_ U-05 Engineer lays Concrete. 01837_ U-05 Engineer builds a Wall. 01840_ U-05 Engineer lays Concrete. 01849_ Grenade Launcher destroyed. 01854_ Dropped Sml. Storage Unit. 01855_ Dropped Lgt. Ion Engine. 01855_ AS-neutralizer No. 17b destroyed. 01884_ K-01 Serf destroyed. 01887_ U-05 Engineer lays Concrete. 01896_ Acquired Prototype Flight Unit. 01898_ Identified Imp. VTOL Module. Flying robots can pass through spaces occupied by others, even hostile robots. 01901_ Acquired Faulty Imp. VTOL Module. 01902_ Dropped Faulty Imp. VTOL Module. 01903_ Acquired Imp. ECM Suite. 01914_ HV Slug penetrates Wall. 01922_ Imp. VTOL Module destroyed. Map ----- +----------------------------------------------------+ | """ # ## """#??### """ # """ #??# | | """ + ## /!"""#??""" "R" # """"" +?? | | # ##! *"""#??"R " " # """"" #??# | | """ # ## ###""" # """"" #??? | | """ # #####+####### # # """ #??? | | """ # "" # #??? | | [# ^ ^ """ ##+########## | | ######### """ "" | | ###??#??# "T ##### # %" g w | | ? ? ?# """ #?### ##" g b] | | ?""" ?# #????######+######+###########+ | | ?"""" # #??????# ]" #??????? | | ?"""" # Y #??????# !!! # #??????? | | ?"""" + #??????# !!! # #??????? | | """ #%! #??????# !! # #??????? | | * #* ########??????# # """ #??????? | | ?# #?????????????# # """"" #??????? | | ??# #?????#######?######## """"" #??????? | | ######### ####### #####????# """"" #??????? | | Y #/ #????# """ #??????? | | Y T # #????######??????????? | | g # #????????????????????? | | ###T######+######## # !#????????????????????? | | ????????? ??????## ## #????????????????????? | | ????????? ???????# g ## #????????????????????? | | ????????? ""???????# ##@ ########?????????????? | | ?????????"""???????# Y###+### #?????????????? | | ??????????"""" ##### gg g #?????????????? | | ????????????"" + g g gg #?????????????? | | ???????????????##### Y #?????????????? | | ???????????????######+######## #?????????????? | | ???????????????# ! #??####+#####???????????? | | ???????????????# #??# #???????????? | | ???????????????# """ #??# """" #???????????? | | ???????????????# """ #??# """" #???????????? | | ???????????????# """ ![#??# """" #???????????? | | ???????????????# """ [#??# #???????????? | | ???????????????# """ =[[#??#"S #???????????? | | ???????????????# #??#""" #???????????? | | ???????????????###########??# "" ! #???????????? | | ????????????????????????????# #???????????? | | ????????????????????????????##########???????????? | | ?????????????????????????????????????????????????? | | ?????????????????????????????????????????????????? | | ?????????????????????????????????????????????????? | | ?????????????????????????????????????????????????? | | | | | | | | | +----------------------------------------------------+ Best States ------------- Heat Dissipation 31 Energy Generation 10 Energy Capacity 250 Matter Stores 300 Matter Capacity 300 Sight Range 18 Terrain Scan Density 10 Evasion (%) 63 Item Schematics ----------------- None Robot Schematics ------------------ None Fabricated ------------ Nothing Alien Tech Used ----------------- None Achievements -------------- None Challenges ------------ None Game ------ Seed GatlingHeatDriver Manual? 0 Play Time 00:28:04 Cumulative 21.8 hours Start 2020.02.09 @ 01:43:57 End 2020.02.09 @ 02:11:44 Sessions 1 Manual Loads 0 Difficulty Rogue Special Mode None Game No. 28 Rogue 28 Adventurer 0 Explorer 0 Win Type - Total 0 Types 0/0/0/0/0/0/0 Lore% 15 Gallery% 21 Achievement% 16 Wizard Run 0 Options --------- ASCII 0 Keyboard 0 Movement Mouse Keybinds 0 Fullscreen 1 Font 18/SmallcapsGlow Map View 76x50 Tactical HUD 1 Map Filters NONE Filters NONE Steam 1 RUN: d13ca0b0-1bef-4a04-8fbf-46ebfe2eec4c